Cogmind - Beta 14 @@@ ROGUE MODE // 2024.09.12 @ 21:11:28 Player: albenzo Result: Destroyed by Combat Programmer with EMDS Performance ------------- Evolutions (9) 4500 Regions Visited (19) 3800 Robots Destroyed (124) 620 Value Destroyed (6744) 6744 Prototype IDs (42) 840 Alien Tech Used (0) 0 Bonus (9271) 9271 TOTAL SCORE: 25775 Bonus ------- High Alert Combat Kills 1312 Follower Combat Kills 2359 Registered with UFD 300 Met Zhirov 300 Met Warlord at Base 500 MAIN.C Attacked Warlord 500 Acquired SGEMP 2000 Delivered SGEMP 2000 Cogmind --------- Core Integrity 0/1600 Matter 10/300 Energy 78/100 System Corruption 38% Temperature Cool (0) Movement Core (50) Location -1/Command Parts ------- > --- POWER (2) -------- (None) > --- PROPULSION (5) --- (None) > --- UTILITY (16) ----- Experimental Optical Array Experimental Targeting Computer Advanced Target Analyzer Advanced Target Analyzer Advanced Target Analyzer > --- WEAPON (3) ------- (None) > --- INVENTORY (5) ---- Vortex Cannon Enhanced Nova Cannon Cooled Nova Cannon KE Penetrator Peak State ------------ > --- POWER ------------ Quantum Reactor Light Quantum Reactor > --- PROPULSION ------- Biometal Leg Biometal Leg Enhanced Biometal Leg Centrium Leg High-density Centrium Leg > --- UTILITY ---------- Advanced Heat Sink Advanced Heat Sink Advanced Heat Sink Large Storage Unit Experimental Optical Array Experimental Targeting Computer Advanced Target Analyzer Advanced Target Analyzer Advanced Transmission Jammer Advanced Cloaking Device Improved Heavy Armor Plating Centrium Light Armor Plating Centrium Light Armor Plating Improved Focal Shield Experimental Thermal Shield > --- WEAPON ----------- Heavy Wave Gun Heavy Wave Gun Heavy Wave Gun > --- INVENTORY -------- Centrium Leg Centrium Leg Antimissile System Quantum Rifle Heavy Quantum Rifle Vortex Cannon Vortex Cannon Vortex Driver Enhanced Nova Cannon Enhanced Nova Cannon Cooled Nova Cannon Z-bomb Delivery System Improved Plasma Cutter [Rating: 201] Favorites ----------- Power Subdweller Power Source Engine Subdweller Power Source Power Core Enhanced Fission Core Reactor Light Quantum Reactor Propulsion Light Treads Treads Light Treads Leg Myomer Leg Wheel Subdweller Monowheel Utility Large Storage Unit Device Advanced Heat Sink Storage Large Storage Unit Processor Advanced Target Analyzer Protection Centrium Light Armor Plating Weapon Heavy Wave Gun Energy Gun Heavy Wave Gun Energy Cannon Vortex Driver Ballistic Gun Barrage Gun Launcher Grenade Launcher Special Weapon Improved Remote Datajack Impact Weapon Makeshift Hammer Slashing Weapon Greatsword Build | -11 -10 -10 -7 -7 -5 -5 -5 -5 -4 -4 -4 -4 -4 -3 -3 -3 -2 -1 -1 ------- Run | Yrd Mat Sub Rec Scr Fac Upp Upp War Pro Fac Upp Upp Zhi Pro Res Tes Res Acc Com Slots Evolved 18 | . . . . . 10 . . . . 2 . . . . 2 . 2 2 . Power 1 | . . . . . . . . . . . . . . . . . 1 . . Propulsion 3 | . . . . . 2 . . . . . . . . . . . 1 . . Utility 13 | . . . . . 7 . . . . 2 . . . . 2 . . 2 . Weapon 1 | . . . . . 1 . . . . . . . . . . . . . . Parts Attached 210 | 2 5 33 1 5 12 1 7 13 1 9 1 2 1 5 2 52 17 15 26 Power 12 | . 1 3 . 1 1 . . . . . . . . . . 3 3 . . Engine 5 | . 1 3 . 1 . . . . . . . . . . . . . . . Core 1 | . . . . . 1 . . . . . . . . . . . . . . Reactor 6 | . . . . . . . . . . . . . . . . 3 3 . . Propulsion 44 | . 2 3 . 1 2 . 2 8 1 3 . 1 . . 1 7 6 1 6 Treads 4 | . 2 2 . . . . . . . . . . . . . . . . . Leg 39 | . . . . 1 2 . 2 8 1 3 . 1 . . 1 7 6 1 6 Wheel 1 | . . 1 . . . . . . . . . . . . . . . . . Hover . | . . . . . . . . . . . . . . . . . . . . Flight . | . . . . . . . . . . . . . . . . . . . . Utility 79 | 1 2 4 . 2 6 1 4 4 . 4 1 . . 1 . 27 5 6 11 Device 42 | 1 . 1 . . 5 . . 3 . 3 1 . . . . 15 5 2 6 Storage 6 | . 2 1 . 1 . . . . . . . . . . . 1 . . 1 Processor 10 | . . . . . . . . . . 1 . . . 1 . 4 . 3 1 Hackware . | . . . . . . . . . . . . . . . . . . . . Protection 21 | . . 2 . 1 1 1 4 1 . . . . . . . 7 . 1 3 Artifact . | . . . . . . . . . . . . . . . . . . . . Weapon 75 | 1 . 23 1 1 3 . 1 1 . 2 . 1 1 4 1 15 3 8 9 Energy Gun 36 | 1 . 10 1 . . . . . . 1 . . 1 2 . 10 3 4 3 Energy Cannon 8 | . . . . . . . . . . 1 . . . 1 . 2 . 2 2 Ballistic Gun 2 | . . 2 . . . . . . . . . . . . . . . . . Ballistic Cannon . | . . . . . . . . . . . . . . . . . . . . Launcher 7 | . . 2 . . . . . . . . . . . 1 . 1 . . 3 Special Weapon 7 | . . . . . 1 . . 1 . . . 1 . . . 1 . 2 1 Impact Weapon 12 | . . 9 . . 1 . 1 . . . . . . . . 1 . . . Slashing Weapon 3 | . . . . 1 1 . . . . . . . . . 1 . . . . Piercing Weapon . | . . . . . . . . . . . . . . . . . . . . Special Melee Weapon . | . . . . . . . . . . . . . . . . . . . . Unidentified Prototypes 22 | . . . . 1 1 1 . 2 . 2 . . . . 1 14 . . . Parts Lost 57 | . . 1 . . . . 4 . . 1 1 . . 2 3 5 2 1 37 Power 2 | . . . . . . . . . . . . . . . . . . . 2 Propulsion 10 | . . . . . . . 1 . . . . . . . 1 . . . 8 Utility 33 | . . . . . . . 2 . . 1 1 . . 2 1 4 2 1 19 Weapon 12 | . . 1 . . . . 1 . . . . . . . 1 1 . . 8 Highest Loss Streak 22 | . . 1 . . . . 1 . . 1 1 . . 2 3 2 1 1 22 To Critical Strikes . | . . . . . . . . . . . . . . . . . . . . Average Slot Usage (%) 91 | . 100 93 100 92 76 73 73 86 88 89 85 85 80 85 70 93 99 96 89 Engine 7 | . 14 13 14 13 4 . . . . . . . . . . . . . . Core 1 | . . . . . . 5 5 5 5 5 5 5 5 5 4 . . . . Reactor 1 | . . . . . . . . . . . . . . . . 3 8 7 5 Treads 13 | . 10 28 28 21 . . . . . . . . . . . . . . . Leg 9 | . 17 . . 2 15 15 16 22 22 20 20 20 20 20 18 18 19 19 18 Device 17 | . 14 7 14 13 30 26 21 21 22 25 30 30 30 30 23 27 24 24 21 Storage 8 | . 14 8 14 13 5 5 5 5 5 5 5 5 5 5 4 6 8 5 3 Processor 2 | . . . . . . . . . . 4 . . . . 4 12 12 12 16 Protection 7 | . . 5 . 2 9 10 13 15 16 15 15 15 15 13 4 9 12 13 10 Energy Gun 9 | . 28 12 14 11 . . . . . . 5 5 . 5 5 7 12 9 9 Ballistic Gun 4 | . . 6 14 11 . . . . . . . . . . . . . . . Launcher 1 | . . 5 . . . . . . . . . . . . . . . . . Special Weapon 1 | . . . . . 3 5 5 5 5 5 5 5 5 5 4 2 . . . Impact Weapon 1 | . . 3 . . . . . 9 11 8 . . . . . . . . . Peak Build Rating 201 | 7 8 16 19 42 85 92 92 91 93 110 113 120 114 122 111 165 186 200 201 Average Rating 66 | 6 7 14 19 21 78 91 87 82 91 103 111 113 105 114 99 151 180 196 185 On Entrance 86 | 6 7 8 16 19 41 85 92 76 91 92 110 113 114 114 110 87 164 180 200 Naked Turns . | . . . . . . . . . . . . . . . . . . . . Heaviest Build 115 | 14 27 92 91 91 75 84 92 77 77 95 95 95 95 108 80 103 99 115 108 Greatest Support 150 | 20 40 40 40 55 94 94 94 85 90 95 95 95 95 95 95 115 148 148 150 Greatest Overweight (x) 4 | . 1 4 2 2 . . 2 1 . . . . . 1 . . . . . Average Overweight (x) . | . . . 2 . . . . . . . . . . . . . . . . Largest Inventory Capacity 25 | 8 15 25 25 25 15 15 15 15 15 15 15 15 15 15 15 15 15 15 15 Average Capacity 15 | 8 11 14 25 16 15 15 15 15 15 15 15 15 15 15 15 15 15 15 14 Most Carried 25 | 7 13 25 25 25 15 15 15 15 15 15 14 15 15 15 15 15 15 15 15 Average Carried 14 | 6 10 12 25 13 12 14 13 13 15 14 13 14 15 14 14 14 14 14 12 Final Capacity 25 | 8 15 25 25 15 15 15 15 15 15 15 15 15 15 15 15 15 15 15 5 Final Carried 25 | 7 13 25 25 15 15 15 11 15 15 14 13 15 15 14 15 15 15 15 4 Class Distribution -------------------- 55% | Mutant 15% | Derelict-Mutant 13% | Scavenger-Tank 7% | Derelict-Gladiator 3% | Derelict-Tank Dominant Class ---------------- Mutant | -10/Materials Mutant | -10/Subcaves Mutant | -7/Recycling Mutant | -7/Scraptown Derelict-Gladiator | -5/Factory Derelict-Gladiator | -5/Upper Caves Derelict-Gladiator | -5/Upper Caves Derelict-Mutant | -5/Warlord Derelict-Mutant | -4/Proximity Caves Derelict-Mutant | -4/Factory Infiltrator-Mutant | -4/Upper Caves Derelict-Mutant | -4/Upper Caves Derelict-Mutant | -4/Zhirov Derelict-Mutant | -3/Proximity Caves Derelict-Mutant | -3/Research Scavenger-Tank | -3/Testing Scavenger-Tank | -2/Research Scavenger-Tank | -1/Access Scavenger-Tank | -1/Command Resources | -11 -10 -10 -7 -7 -5 -5 -5 -5 -4 -4 -4 -4 -4 -3 -3 -3 -2 -1 -1 ----------- Run | Yrd Mat Sub Rec Scr Fac Upp Upp War Pro Fac Upp Upp Zhi Pro Res Tes Res Acc Com Matter Collected 3130 | 210 60 468 . 60 148 10 65 157 17 114 71 45 . 60 64 874 197 65 445 Remotely . | . . . . . . . . . . . . . . . . . . . . Salvage Created 6806 | 122 219 520 . . 155 79 421 . . 244 246 . . 79 86 2258 1016 510 851 Parts 244 | 10 14 42 . . 8 6 19 . . 4 2 . . 3 . 74 35 12 15 Haulers Intercepted 7 | . 2 . . . 1 . . . . 1 . . . . . 2 1 . . Recyclers Shooed 1 | . . . . . . . . . . . . . . . . . . . 1 Parts Field Recycled . | . . . . . . . . . . . . . . . . . . . . Retrieved Matter . | . . . . . . . . . . . . . . . . . . . . Parts Self-Destructed 50 | . . 11 . . . 5 12 . 16 . 2 . . 4 . . . . . Prevented . | . . . . . . . . . . . . . . . . . . . . Kills | -11 -10 -10 -7 -7 -5 -5 -5 -5 -4 -4 -4 -4 -4 -3 -3 -3 -2 -1 -1 ------- Run | Yrd Mat Sub Rec Scr Fac Upp Upp War Pro Fac Upp Upp Zhi Pro Res Tes Res Acc Com Combat Hostiles Destroyed 107 | . 6 14 . . . 1 6 . . 4 6 . . 2 3 36 10 8 11 Melee 9 | . . . . . . 1 6 . . 2 . . . . . . . . . Guns 68 | . 6 14 . . . . . . . . 5 . . . 2 20 8 6 7 Cannons 9 | . . . . . . . . . . . . . . 1 . 7 . . 1 AOE 7 | . . . . . . . . . . . 1 . . 1 1 3 . . 1 Classes Destroyed 21 | 2 4 1 . . 1 2 3 . . 1 2 . . . . 3 2 . . Worker 1 | . . . . . . . . . . . . . . . . 1 . . . Builder 1 | . 1 . . . . . . . . . . . . . . . . . . Tunneler 4 | 4 . . . . . . . . . . . . . . . . . . . Hauler 7 | . 2 . . . 1 . . . . 1 . . . . . 2 1 . . Recycler 3 | 1 . . . . . . . . . . . . . . . . 1 . 1 Minesweeper 1 | . . . . . . 1 . . . . . . . . . . . . . Operator 2 | . . . . . 1 . . . . . . . . . . . . . 1 Watcher 3 | . 2 . . . . . . . . . . . . . . . . . 1 Swarmer 12 | . 6 4 . . . . . . . 1 . . . 1 . . . . . Saboteur 1 | . . . . . . . . . . . . . . . . 1 . . . Grunt 32 | . . . . . . 1 3 . . 1 2 . . . . 25 . . . Brawler 2 | . . . . . . . 1 . . . . . . . . 1 . . . Duelist 3 | . . . . . . . . . . . . . . . . . 1 2 . Sentry 8 | . . . . . . . . . . . 1 . . 1 2 . 4 . . Demolisher 1 | . . . . . . . . . . . . . . . . . 1 . . Hunter 11 | . . . . . . . 2 . . . 2 . . . . . . . 7 Programmer 25 | . . . . . . . . . . 2 . . . . 1 8 4 6 4 Striker 1 | . . . . . . . . . . . . . . . . 1 . . . Subdweller 10 | . . 10 . . . . . . . . . . . . . . . . . Samaritan 1 | . . . . . . . 1 . . . . . . . . . . . . Mutant 1 | . . . . . . . . . . . 1 . . . . . . . . Best Kill Streak 7 | 3 4 4 . . 1 1 2 . . 1 3 . . 1 2 7 3 3 4 Combat Bots Only 7 | . 3 4 . . . 1 2 . . 1 3 . . 1 2 7 3 3 4 Max Kills in Single Turn 3 | 1 2 2 . . 1 1 1 . . 1 1 . . 1 1 3 1 1 1 Gunslinging 1 | . 1 1 . . . . . . . . . . . . . . . . . Exploded 3 | . . . . . . . . . . . 1 . . 1 1 3 . . 1 Melee 1 | . . . . . . 1 1 . . 1 . . . . . . . . . Uniques/NPCs Destroyed . | . . . . . . . . . . . . . . . . . . . . Combat | -11 -10 -10 -7 -7 -5 -5 -5 -5 -4 -4 -4 -4 -4 -3 -3 -3 -2 -1 -1 -------- Run | Yrd Mat Sub Rec Scr Fac Upp Upp War Pro Fac Upp Upp Zhi Pro Res Tes Res Acc Com Hostile Shots Fired 1019 | . 23 41 . . . 6 136 . 8 64 56 . . 48 32 242 62 61 240 Missed 355 | . 11 14 . . . 3 52 . 3 21 34 . . 15 11 96 24 16 55 Intercepted 2 | . . . . . . . . . . . . . . . . . 1 . 1 Damage Taken 14537 | . 92 611 . . . 57 986 . 67 695 344 . . 882 550 1911 955 1080 6307 Core 2103 | . 37 113 . . . . 16 . . 48 . . . 58 . 186 32 22 1591 Absorbed by Shields 1344 | . . . . . . 4 180 . 24 230 93 . . 72 81 453 207 . . Ignored by Resistances 1131 | . . . . . . . . . . . . . . . . 665 81 . 385 Regen/Repaired (Parts) 407 | . 116 . . . 5 . . 31 . . . . . . . 41 214 . . Core Remaining (%) 85 | 100 . . . 40 . . . . 98 . . . . 90 . 85 97 . . Volleys Fired 419 | 10 30 50 . . 4 . 2 . 1 13 25 . . 22 18 107 40 31 66 Largest 3 | 2 2 2 . . 1 . 1 . 1 1 1 . . 1 1 3 3 3 3 Hottest 276 | 90 90 150 . . 7 . 7 . 7 45 45 . . 100 45 276 270 270 268 Shots Fired 839 | 20 60 83 . . 4 . 2 . 1 13 25 . . 23 18 238 119 84 149 Gun 738 | 20 60 74 . . . . . . . 2 25 . . 14 17 201 119 80 126 Cannon 50 | . . . . . . . . . . . . . . 1 . 27 . 4 18 Launcher 24 | . . 9 . . . . . . . . . . . 8 . 2 . . 5 Special 27 | . . . . . 4 . 2 . 1 11 . . . . 1 8 . . . Kinetic 12 | . . 12 . . . . . . . . . . . . . . . . . Thermal 658 | 20 60 36 . . . . . . . . . . . 12 . 201 119 84 126 Explosive 16 | . . 9 . . . . . . . . . . . . . 2 . . 5 Electromagnetic 34 | . . 26 . . . . . . . . . . . 8 . . . . . Entropic 92 | . . . . . . . . . . 2 25 . . 3 17 27 . . 18 Robot Hit Streak 32 | 8 7 16 . . 3 . 1 . 2 6 3 . . 5 11 32 15 21 22 Robot Miss Streak 8 | 3 5 1 . . 1 . 1 . . 3 5 . . 8 2 3 5 1 4 Penetration Max 1 | . . . . . . . . . . . 1 . . . . 1 . . . Secondary Targets 12 | . 3 2 . . . . . . . . . . . . . 4 2 . 1 Max Gunslinging Chain 1 | . 1 1 . . . . . . . . . . . . . 1 1 . 1 Shots Hit Robots 628 | 13 31 53 . . 9 2 18 . 1 26 13 . . 8 15 183 80 66 110 Core Hits 239 | 6 14 28 . . 2 1 9 . . 2 12 . . 5 5 67 30 18 40 Critical Kills 6 | . . . . . . . . . . 1 . . . . . 5 . . . Critical Parts Destroyed 10 | . . . . . . . . . . 3 3 . . 1 2 1 . . . Critical Strikes 99 | 1 6 . . . . . 5 . . 4 3 . . 2 2 40 10 4 22 Burn 58 | 1 6 . . . . . . . . . . . . . . 21 10 4 16 Destroy 6 | . . . . . . . . . . . . . . . . 6 . . . Smash 4 | . . . . . . . . . . 4 . . . . . . . . . Sever 5 | . . . . . . . 5 . . . . . . . . . . . . Detonate 6 | . . . . . . . . . . . 3 . . 1 2 . . . . Sunder 20 | . . . . . . . . . . . . . . 1 . 13 . . 6 Melee Attacks 118 | . . 35 . . 11 4 24 1 3 40 . . . . . . . . . Impact 80 | . . 35 . . . . 1 1 3 40 . . . . . . . . . Slashing 38 | . . . . . 11 4 23 . . . . . . . . . . . . Piercing . | . . . . . . . . . . . . . . . . . . . . Sneak Attacks 6 | . . . . . 1 1 2 . . 2 . . . . . . . . . Combat Hostiles 1 | . . . . . . . . . . 1 . . . . . . . . . Follow-up Attacks 7 | . . . . . . . . . . 7 . . . . . . . . . Damage Inflicted 24329 | 152 389 861 . . 494 175 871 . . 1035 1047 . . 531 862 7589 2517 2259 5547 Guns 15440 | 152 389 861 . . . . . . . . 643 . . 219 611 4750 2517 2259 3039 Cannons 2679 | . . . . . . . . . . . . . . 99 . 1619 . . 961 Explosions 3627 | . . . . . . . . . . . 404 . . 213 243 1220 . . 1547 Melee 2575 | . . . . . 494 175 871 . . 1035 . . . . . . . . . Ramming 8 | . . . . . . . . . . . . . . . 8 . . . . Kinetic 25 | . . 25 . . . . . . . . . . . . . . . . . Thermal 14481 | 152 389 472 . . . . . . . . 404 . . 256 243 4750 2517 2259 3039 Explosive 2767 | . . . . . . . . . . . . . . . . 1220 . . 1547 Electromagnetic 490 | . . 364 . . . . . . . . . . . 126 . . . . . Impact 1035 | . . . . . . . . . . 1035 . . . . . . . . . Slashing 1540 | . . . . . 494 175 871 . . . . . . . . . . . . Piercing . | . . . . . . . . . . . . . . . . . . . . Entropic 3983 | . . . . . . . . . . . 643 . . 149 611 1619 . . 961 Highest Corruption 35 | . . . . . . . 5 5 . 8 8 8 8 8 1 13 4 11 35 Average Corruption 6 | . . . . . . . 5 5 . 7 8 8 8 8 1 2 3 6 13 Corruption Purged . | . . . . . . . . . . . . . . . . . . . . Corruption Blocked . | . . . . . . . . . . . . . . . . . . . . Effects 136 | . . . . . . . 10 1 . 5 10 6 4 11 2 26 11 9 41 Message Errors 29 | . . . . . . . 3 . . 2 1 1 1 . . 7 4 2 8 Matter Fused 37 | . . . . . . . 2 . . 1 3 2 3 5 2 9 1 2 7 Heat Flow Errors 14 | . . . . . . . 3 . . . 2 . . 1 . 2 . 2 4 Energy Discharges 12 | . . . . . . . . . . 1 1 2 . 1 . 1 2 . 4 Parts Rejected 3 | . . . . . . . 1 . . . . . . . . . . . 2 Parts Fused 3 | . . . . . . . . . . . . . . 1 . . . . 2 Data Loss (minor) 10 | . . . . . . . 1 1 . 1 1 1 . . . 2 2 . 1 Data Loss (major) 8 | . . . . . . . . . . . 1 . . 2 . 2 . . 3 Misfires 4 | . . . . . . . . . . . . . . 1 . 1 . 1 1 Alerts 4 | . . . . . . . . . . . 1 . . . . 1 1 . 1 Weapon Failures 12 | . . . . . . . . . . . . . . . . 1 1 2 8 Overload Shots 1 | . . 1 . . . . . . . . . . . . . . . . . Overflow Damage 1611 | . . . . . 123 80 67 . . 210 4 . . 45 64 292 . . 726 Projectiles 90 | . . . . . . . . . . . . . . . . 2 . . 88 Explosions 1041 | . . . . . . . . . . . 4 . . 45 64 290 . . 638 Melee 480 | . . . . . 123 80 67 . . 210 . . . . . . . . . Knockbacks 8 | . . . . . . . . . . 8 . . . . . . . . . Impact 8 | . . . . . . . . . . 8 . . . . . . . . . Kinetic . | . . . . . . . . . . . . . . . . . . . . Secondary . | . . . . . . . . . . . . . . . . . . . . Self-Inflicted Damage 1143 | . . . . . . . . . . . . . . 210 93 . . . 840 Shots 11 | . . . . . . . . . . . . . . 6 1 . . . 4 Rammed . | . . . . . . . . . . . . . . . . . . . . Targets Rammed 1 | . . . . . . . . . . . . . . . 1 . . . . Kicked 1 | . . . . . . . . . . . . . . . 1 . . . . Crushed . | . . . . . . . . . . . . . . . . . . . . Highest Temperature 492 | 180 300 76 . . . . 122 . . . 219 . . 288 1 332 390 306 492 Average Temperature 111 | 80 95 17 . . . . 60 . . . 90 . . 168 1 92 133 121 141 Received Heat Transfer 1196 | . . 108 . . . 16 124 . 9 42 40 . . 9 63 626 51 . 108 Effects 2 | . . . . . . . . . . . . . . . . 1 . . 1 Shutdowns 2 | . . . . . . . . . . . . . . . . 1 . . 1 Siege Activations . | . . . . . . . . . . . . . . . . . . . . Robots Corrupted 2 | . . . . . . . . . . 2 . . . . . . . . . Combat Hostiles 2 | . . . . . . . . . . 2 . . . . . . . . . Parts Fried . | . . . . . . . . . . . . . . . . . . . . Impact Corruptions 11 | . . . . . . . . . . 11 . . . . . . . . . Robots Melted 14 | . . . . . . . . . . . . . . . . 7 2 2 3 Combat Hostiles 12 | . . . . . . . . . . . . . . . . 6 2 2 2 Parts Melted 88 | 1 3 2 . . . . . . . . . . . . . 31 18 16 17 Heat Transferred 22522 | 483 1485 1036 . . . . . . . . 300 . . 272 150 7548 3737 2849 4662 Parts Sabotaged . | . . . . . . . . . . . . . . . . . . . . Parts Stolen . | . . . . . . . . . . . . . . . . . . . . Parts Stripped . | . . . . . . . . . . . . . . . . . . . . Power Chain Reactions . | . . . . . . . . . . . . . . . . . . . . Alert | -11 -10 -10 -7 -7 -5 -5 -5 -5 -4 -4 -4 -4 -4 -3 -3 -3 -2 -1 -1 ------- Run | Yrd Mat Sub Rec Scr Fac Upp Upp War Pro Fac Upp Upp Zhi Pro Res Tes Res Acc Com Peak Influence 977 | 25 205 . 90 . 48 . . . . 341 . . . . 152 977 714 634 453 Initial 444 | . 16 . 33 . . . . . . 58 . . . . . 85 444 345 403 Average 290 | 10 90 . 34 . 16 . . . . 213 . . . . 70 570 465 501 394 Maximum Alert Level 3 | . 1 . . . . . . . . 1 . . . . . 3 3 2 2 Low Security (%) 47 | 100 97 . 100 . 100 . . . . 42 . . . . 100 11 . . . Level 1 13 | . 2 . . . . . . . . 57 . . . . . 8 25 20 25 Level 2 30 | . . . . . . . . . . . . . . . . 42 73 79 74 Level 3 8 | . . . . . . . . . . . . . . . . 37 . . . Level 4 . | . . . . . . . . . . . . . . . . . . . . Level 5 . | . . . . . . . . . . . . . . . . . . . . High Security . | . . . . . . . . . . . . . . . . . . . . Max Security . | . . . . . . . . . . . . . . . . . . . . Squads Dispatched 30 | . 2 . . . . . 1 . . 1 . . . . 3 13 4 3 3 Investigation 3 | . . . . . . . . . . . . . . . . 1 1 . 1 Extermination 10 | . . . . . . . . . . 1 . . . . . 4 2 2 1 Reinforcement 9 | . 2 . . . . . . . . . . . . . . 6 . . 1 Assault 5 | . . . . . . . 1 . . . . . . . . 2 1 1 . Garrison 3 | . . . . . . . . . . . . . . . 3 . . . . Intercept . | . . . . . . . . . . . . . . . . . . . . Searches Triggered . | . . . . . . . . . . . . . . . . . . . . Construction Impeded . | . . . . . . . . . . . . . . . . . . . . Haulers Reinforced 1 | . . . . . . . . . . . . . . . . 1 . . . Active Scanning Responses . | . . . . . . . . . . . . . . . . . . . . Cargo Convoy Interrupts . | . . . . . . . . . . . . . . . . . . . . Stealth | -11 -10 -10 -7 -7 -5 -5 -5 -5 -4 -4 -4 -4 -4 -3 -3 -3 -2 -1 -1 --------- Run | Yrd Mat Sub Rec Scr Fac Upp Upp War Pro Fac Upp Upp Zhi Pro Res Tes Res Acc Com Distress Signals 2 | . 1 . . . . . . 1 . . . . . . . . . . . Communications Jammed 31 | . . . . . . . . . . 16 . . . . 1 . 4 2 8 Distress Signals 31 | . . . . . . . . . . 16 . . . . 1 . 4 2 8 Times Spotted 222 | . 11 22 . . 4 4 12 1 5 16 6 . . 8 7 63 23 19 21 Peak Tracking Total 10 | . 4 6 . . 1 4 10 . 4 3 3 . . 4 3 8 5 5 6 Tactical Retreats 17 | . . 3 . . . 1 2 . . 1 . . . 2 . 5 . 2 1 Traps | -11 -10 -10 -7 -7 -5 -5 -5 -5 -4 -4 -4 -4 -4 -3 -3 -3 -2 -1 -1 ------- Run | Yrd Mat Sub Rec Scr Fac Upp Upp War Pro Fac Upp Upp Zhi Pro Res Tes Res Acc Com Traps Triggered 2 | . . . . . . . . . . . . . . . . 1 1 . . Indirectly . | . . . . . . . . . . . . . . . . . . . . Trap Hack Attempts . | . . . . . . . . . . . . . . . . . . . . Triggered . | . . . . . . . . . . . . . . . . . . . . Disarmed . | . . . . . . . . . . . . . . . . . . . . Reprogrammed . | . . . . . . . . . . . . . . . . . . . . Reused . | . . . . . . . . . . . . . . . . . . . . Traps Extracted . | . . . . . . . . . . . . . . . . . . . . Installed 7 | . . 2 . . . 5 . . . . . . . . . . . . . Triggered 9 | . . . . . . . . 8 . . 1 . . . . . . . . Machines | -11 -10 -10 -7 -7 -5 -5 -5 -5 -4 -4 -4 -4 -4 -3 -3 -3 -2 -1 -1 ---------- Run | Yrd Mat Sub Rec Scr Fac Upp Upp War Pro Fac Upp Upp Zhi Pro Res Tes Res Acc Com Machines Disabled 9 | . . . . . . . . . . . 1 . . . . 5 . 3 . Max in Single Turn 1 | . . . . . . . . . . . 1 . . . . 1 . 1 . Machines Repaired . | . . . . . . . . . . . . . . . . . . . . Machines Dismantled 3 | . . . . . . . . . . . . . . . . . . 3 . Machines Sabotaged . | . . . . . . . . . . . . . . . . . . . . Overloaded Fab Kills . | . . . . . . . . . . . . . . . . . . . . Hacking | -11 -10 -10 -7 -7 -5 -5 -5 -5 -4 -4 -4 -4 -4 -3 -3 -3 -2 -1 -1 --------- Run | Yrd Mat Sub Rec Scr Fac Upp Upp War Pro Fac Upp Upp Zhi Pro Res Tes Res Acc Com Machines Accessed 53 | . 5 1 11 4 5 . . 2 . 6 . 1 4 . . 6 4 . 4 Terminals 28 | . 4 . 5 . 2 . . . . 6 . 1 . . . 6 2 . 2 Fabricators 3 | . . . . . 3 . . . . . . . . . . . . . . Repair Stations 3 | . 1 . . . . . . . . . . . . . . . 1 . 1 Recycling Units 8 | . . . 6 . . . . . . . . . . . . . 1 . 1 Scanalyzers . | . . . . . . . . . . . . . . . . . . . . Garrison Access . | . . . . . . . . . . . . . . . . . . . . Total Hacks 141 | . 13 4 20 21 15 . . 3 . 19 . 1 17 . . 12 10 . 6 Successful 93 | . 8 4 10 21 9 . . 3 . 7 . 1 17 . . 6 7 . . Failed 48 | . 5 . 10 . 6 . . . . 12 . . . . . 6 3 . 6 Catastrophic 13 | . 1 . 2 . 2 . . . . 3 . . . . . 2 1 . 2 Database Lockouts . | . . . . . . . . . . . . . . . . . . . . Manual 43 | . 6 . 14 . 4 . . . . 7 . . . . . 4 4 . 4 Terminals 66 | . 10 . 11 . 7 . . . . 19 . 1 . . . 12 4 . 2 Fabricators 8 | . . . . . 8 . . . . . . . . . . . . . . Repair Stations 9 | . 3 . . . . . . . . . . . . . . . 5 . 1 Recycling Units 13 | . . . 9 . . . . . . . . . . . . . 1 . 3 Scanalyzers . | . . . . . . . . . . . . . . . . . . . . Garrison Access . | . . . . . . . . . . . . . . . . . . . . Terminal Hacks 66 | . 3 4 2 21 5 . . 3 . 5 . 1 17 . . 5 . . . Record 27 | . . 4 . 15 . . . 2 . . . 1 5 . . . . . . Part Schematic 5 | . . . . . 1 . . . . . . . 4 . . . . . . Robot Analysis 10 | . . . . 6 . . . . . . . . 4 . . . . . . Prototype ID Bank 4 | . . . . . . . . . . . . . 4 . . . . . . Open Door 2 | . . . . . . . . 1 . . . . . . . 1 . . . Branch Access Points 2 | . . . . . 1 . . . . 1 . . . . . . . . . Emergency Access Points 1 | . . . . . . . . . . 1 . . . . . . . . . Terminal Index 2 | . . . 1 . 1 . . . . . . . . . . . . . . Recycling Unit Index 1 | . . . 1 . . . . . . . . . . . . . . . . Alert Level 3 | . 2 . . . . . . . . . . . . . . 1 . . . Unreport Threat 3 | . . . . . . . . . . . . . . . . 3 . . . Locate Traps 3 | . . . . . . . . . . 3 . . . . . . . . . Patrol Status 1 | . . . . . 1 . . . . . . . . . . . . . . Hauler Manifests 1 | . 1 . . . . . . . . . . . . . . . . . . Zone Layout 1 | . . . . . 1 . . . . . . . . . . . . . . Fabricator Hacks 2 | . . . . . 2 . . . . . . . . . . . . . . Network Status 1 | . . . . . 1 . . . . . . . . . . . . . . Load Schematic 1 | . . . . . 1 . . . . . . . . . . . . . . Repair Station Hacks 6 | . 2 . . . . . . . . . . . . . . . 4 . . Scan Component 4 | . 1 . . . . . . . . . . . . . . . 3 . . Repair 2 | . 1 . . . . . . . . . . . . . . . 1 . . Recycling Unit Hacks . | . . . . . . . . . . . . . . . . . . . . Scanalyzer . | . . . . . . . . . . . . . . . . . . . . Garrison Access Hacks . | . . . . . . . . . . . . . . . . . . . . Unauthorized Hacks 19 | . 3 . 8 . 2 . . . . 2 . . . . . 1 3 . . Terminals 11 | . 3 . 2 . 1 . . . . 2 . . . . . 1 2 . . Botnet 11 | . 3 . 2 . 1 . . . . 2 . . . . . 1 2 . . Fabricators 1 | . . . . . 1 . . . . . . . . . . . . . . Haulers 1 | . . . . . 1 . . . . . . . . . . . . . . Repair Stations 1 | . . . . . . . . . . . . . . . . . 1 . . Recycling Units 6 | . . . 6 . . . . . . . . . . . . . . . . Tunnel 6 | . . . 6 . . . . . . . . . . . . . . . . Scrapoids 1 | . . . . . . . . . . . . . . . . . 1 . . Scanalyzers . | . . . . . . . . . . . . . . . . . . . . Garrison Access . | . . . . . . . . . . . . . . . . . . . . Data Cores Recovered 1 | . . . . . 1 . . . . . . . . . . . . . . Used 1 | . . . . . 1 . . . . . . . . . . . . . . Hacking Detections 35 | . 5 . 7 . 5 . . . . 6 . . . . . 6 2 . 4 Full Trace Events 2 | . 1 . . . . . . . . . . . . . . . . . 1 Feedback Events . | . . . . . . . . . . . . . . . . . . . . Feedback Blocked . | . . . . . . . . . . . . . . . . . . . . Robot Schematics Acquired 1 | . . . . . . . . . . . . . . . . 1 . . . Robots Built . | . . . . . . . . . . . . . . . . . . . . Authchips . | . . . . . . . . . . . . . . . . . . . . Time . | . . . . . . . . . . . . . . . . . . . . Total Robot Build Rating . | . . . . . . . . . . . . . . . . . . . . Part Schematics Acquired 17 | . . . . . 1 . . . . . . . 4 . . 12 . . . Parts Built . | . . . . . . . . . . . . . . . . . . . . Authchips . | . . . . . . . . . . . . . . . . . . . . Time . | . . . . . . . . . . . . . . . . . . . . Total Part Build Rating . | . . . . . . . . . . . . . . . . . . . . Parts Repaired 2 | . 1 . . . . . . . . . . . . . . . 1 . . Time 162 | . 26 . . . . . . . . . . . . . . . 136 . . Parts Recycled . | . . . . . . . . . . . . . . . . . . . . Recycled Matter . | . . . . . . . . . . . . . . . . . . . . Retrieved Matter . | . . . . . . . . . . . . . . . . . . . . Retrieved Components . | . . . . . . . . . . . . . . . . . . . . Parts Scanalyzed . | . . . . . . . . . . . . . . . . . . . . Part Schematics Acquired . | . . . . . . . . . . . . . . . . . . . . Parts Damaged . | . . . . . . . . . . . . . . . . . . . . Bothacking | -11 -10 -10 -7 -7 -5 -5 -5 -5 -4 -4 -4 -4 -4 -3 -3 -3 -2 -1 -1 ------------ Run | Yrd Mat Sub Rec Scr Fac Upp Upp War Pro Fac Upp Upp Zhi Pro Res Tes Res Acc Com Used RIF Installer . | . . . . . . . . . . . . . . . . . . . . Robots Hacked 10 | . . . . . 4 . 1 . 1 2 . . . . . 2 . . . Non-combat 3 | . . . . . 2 . 1 . . . . . . . . . . . . Combat . | . . . . . . . . . . . . . . . . . . . . Robot Hacks Applied 3 | . . . . . 2 . 1 . . . . . . . . . . . . parse_system 1 | . . . . . . . 1 . . . . . . . . . . . . find_chute 1 | . . . . . 1 . . . . . . . . . . . . . . check_alert 1 | . . . . . 1 . . . . . . . . . . . . . . Manual 7 | . . . . . 2 . . . 1 2 . . . . . 2 . . . Relay Couplers Released . | . . . . . . . . . . . . . . . . . . . . Fabnet Peak Effective % . | . . . . . . . . . . . . . . . . . . . . Robots Rewired 7 | . . . . . . . . 5 . 1 . . . . . 1 . . . Allies Hacked 1 | . . . . . . . . . . 1 . . . . . . . . . Hacks Repelled . | . . . . . . . . . . . . . . . . . . . . Allies | -11 -10 -10 -7 -7 -5 -5 -5 -5 -4 -4 -4 -4 -4 -3 -3 -3 -2 -1 -1 -------- Run | Yrd Mat Sub Rec Scr Fac Upp Upp War Pro Fac Upp Upp Zhi Pro Res Tes Res Acc Com Total Allies 18 | . . . . . . . . 5 . 1 . . . . . 1 8 3 . Largest Group 5 | . . . . . . . . 5 4 4 . . . . . 1 5 3 . Highest-Rated Group 379 | . . . . . . . . 291 242 242 . . . . . 145 320 379 . Highest-Rated Ally 145 | . . . . . . . . 68 68 68 . . . . . 145 64 135 . Total Orders . | . . . . . . . . . . . . . . . . . . . . Ally Attacks 210 | . . . . . . . . 21 17 16 . . . . . 68 66 22 . Total Damage 9500 | . . . . . . . . 1067 814 1044 . . . . . 4186 1472 917 . Kills 58 | . . . . . . . . 6 8 8 . . . . . 25 5 6 . Allies Corrupted . | . . . . . . . . . . . . . . . . . . . . Allies Melted 1 | . . . . . . . . 1 . . . . . . . . . . . Intel | -11 -10 -10 -7 -7 -5 -5 -5 -5 -4 -4 -4 -4 -4 -3 -3 -3 -2 -1 -1 ------- Run | Yrd Mat Sub Rec Scr Fac Upp Upp War Pro Fac Upp Upp Zhi Pro Res Tes Res Acc Com Robot Analysis Total 10 | . . . . 6 . . . . . . . . 4 . . . . . . Derelict Logs Recovered 14 | . . 2 . 5 . 1 2 . 1 . 2 1 . . . . . . . Drone Launches . | . . . . . . . . . . . . . . . . . . . . Drone Recoveries . | . . . . . . . . . . . . . . . . . . . . Exploration | -11 -10 -10 -7 -7 -5 -5 -5 -5 -4 -4 -4 -4 -4 -3 -3 -3 -2 -1 -1 ------------- Run | Yrd Mat Sub Rec Scr Fac Upp Upp War Pro Fac Upp Upp Zhi Pro Res Tes Res Acc Com Turns Passed 21414 | 70 800 5689 1733 3505 646 507 623 1056 534 676 345 359 180 421 138 1825 833 687 787 Spaces Moved 11981 | 25 491 2447 542 2161 477 393 385 803 412 442 235 296 149 286 73 1072 437 400 455 Core 20 | . . . . . . . . . . . . . . . . . . . 20 Treads 4702 | . 155 2447 542 1558 . . . . . . . . . . . . . . . Legs 7259 | 25 336 . . 603 477 393 385 803 412 442 235 296 149 286 73 1072 437 400 435 Wheels . | . . . . . . . . . . . . . . . . . . . . Hover . | . . . . . . . . . . . . . . . . . . . . Flight . | . . . . . . . . . . . . . . . . . . . . Fastest Speed 50 | 120 120 160 320 130 120 120 120 117 122 120 120 120 120 120 120 112 110 112 50 Average Speed 155 | 120 132 215 320 160 120 120 138 119 122 121 120 120 120 124 120 115 112 112 110 Slowest Speed 480 | 120 190 480 320 320 120 120 255 192 122 122 120 120 120 190 120 120 114 112 117 Overloaded Moves . | . . . . . . . . . . . . . . . . . . . . Propulsion Burnouts . | . . . . . . . . . . . . . . . . . . . . Robots Hopped . | . . . . . . . . . . . . . . . . . . . . Cave-ins Triggered . | . . . . . . . . . . . . . . . . . . . . Exploration Rate (%) 48 | 3 59 97 90 95 17 54 58 92 62 13 42 47 60 50 5 87 15 14 16 Regions Visited 19 Branch Regions 13 Pre-discovered Areas 15 | . . 3 6 1 . . 1 . . . 1 . 3 . . . . . . Known Exits Taken 7 | . . . . . 1 1 1 . 1 1 . . . . 1 . . 1 . Unknown Exits Taken 12 | 1 1 1 1 1 . . . 1 . . 1 1 1 1 . 1 1 . . Scrap Searched 22 | . . 3 . 7 . 1 3 . 5 . . 3 . . . . . . . Spaces Dug 57 | . . 33 . . 5 . 1 1 2 2 1 . . . 4 . . 4 4 Terrain Destroyed 304 | . . 82 . . 5 . 1 1 2 7 81 . . 25 32 26 1 4 37 Melee 23 | . . 12 . . 5 . 1 1 2 2 . . . . . . . . . Projectile 139 | . . 4 . . . . . . . 5 45 . . 10 24 26 1 4 20 AOE 142 | . . 66 . . . . . . . . 36 . . 15 8 . . . 17 Terrain Rammed . | . . . . . . . . . . . . . . . . . . . . Walls Destroyed . | . . . . . . . . . . . . . . . . . . . . Machines Disabled . | . . . . . . . . . . . . . . . . . . . . Actions | -11 -10 -10 -7 -7 -5 -5 -5 -5 -4 -4 -4 -4 -4 -3 -3 -3 -2 -1 -1 --------- Run | Yrd Mat Sub Rec Scr Fac Upp Upp War Pro Fac Upp Upp Zhi Pro Res Tes Res Acc Com Total 13975 | 44 582 2734 542 2221 528 425 440 922 442 547 273 300 150 327 106 1511 716 533 632 Wait 852 | 7 37 112 . . 5 15 22 23 24 39 13 . . 14 10 216 204 30 81 Move 11963 | 24 490 2446 541 2160 476 392 384 802 411 441 234 295 148 285 73 1071 436 399 455 Hop . | . . . . . . . . . . . . . . . . . . . . Pick Up 142 | 1 12 29 . 19 14 3 . 24 1 4 . 1 . 1 1 18 6 6 2 Fast Attach 59 | 1 1 3 . 3 1 1 2 2 . 1 . 1 1 . 1 29 4 1 7 Attach 53 | . . 5 . 1 8 . 5 3 . 4 1 . . 2 1 6 3 2 12 Detach 20 | . . 3 . 5 . . 1 3 . 2 . 1 . . 1 4 . . . Swap 98 | 1 4 25 1 1 3 . . 8 1 4 . 1 . 3 . 17 10 12 7 Drop 167 | . 8 13 . 31 6 5 . 30 2 7 . 1 1 . 1 43 13 4 2 Fire 419 | 10 30 50 . . 4 . 2 . 1 13 25 . . 22 18 107 40 31 66 Melee 109 | . . 35 . . 11 4 24 1 2 32 . . . . . . . . . Ram . | . . . . . . . . . . . . . . . . . . . . Kick . | . . . . . . . . . . . . . . . . . . . . Crush . | . . . . . . . . . . . . . . . . . . . . Escape Stasis . | . . . . . . . . . . . . . . . . . . . . Rewire 27 | . . . . 1 . . . 26 . . . . . . . . . . . Trap 7 | . . 2 . . . 5 . . . . . . . . . . . . . Miscellaneous 59 | . . 11 . . . . . . . . . . . . . . . 48 . Route ------- -11/Scrapyard -10/Materials (discovered 3 exits: [*Min x2] / *Sub) -10/Subcaves (discovered 3 exits: [*Mat x2] / *Rec) -7/Recycling -7/Scraptown (discovered 2 exits: *Fac x2) -5/Factory (discovered 5 exits: Fac / *Upp x2 / Ext x2) -5/Upper Caves -5/Upper Caves -5/Warlord -4/Proximity Caves -4/Factory (discovered 3 exits: [*Res] / *Upp x2) -4/Upper Caves -4/Upper Caves -4/Zhirov -3/Proximity Caves -3/Research -3/Testing -2/Research -1/Access (discovered 2 exits: Sur / *Com) -1/Command History --------- Turn | Location | Event 1 | -11/Scrapyard | Discovered new exit (range 1) 71 | -11/Scrapyard | Entered Materials 183 | -10/Materials | Discovered new exit (range 10) 315 | -10/Materials | Build established: Mutant 414 | -10/Materials | Discovered new exit (range 8) 822 | -10/Materials | Repaired Lgt. Treads 861 | -10/Materials | Discovered new exit (range 6) 871 | -10/Materials | Entered Subcaves 922 | -10/Subcaves | Shifting Twisted Machinery released Riot Gun 922 | -10/Subcaves | Shifting Twisted Machinery released Mak. Laser 1156 | -10/Subcaves | Learned location of Zion (-7) 1193 | -10/Subcaves | Discovered new exit (range 8) 1213 | -10/Subcaves | Met a Zionite searching for "candidates" 2212 | -10/Subcaves | A swath of the cavern ceiling suddenly collapsed 2328 | -10/Subcaves | A swath of the cavern ceiling suddenly collapsed 2489 | -10/Subcaves | Shifting Twisted Machinery released Ripper 2499 | -10/Subcaves | Discovered new exit (range 15) 2599 | -10/Subcaves | Shifting Twisted Machinery released Mak. Flight Unit 2611 | -10/Subcaves | Shifting Twisted Machinery released Mak. Light Armor Plating 2680 | -10/Subcaves | Core integrity fell below 50% 2881 | -10/Subcaves | Visited Clippyterm 2885 | -10/Subcaves | Learned Research machine intel 3678 | -10/Subcaves | Discovered new exit (range 3) 3901 | -10/Subcaves | A Subdweller sparked back to life 3901 | -10/Subcaves | A Subdweller sparked back to life 3901 | -10/Subcaves | A Subdweller sparked back to life 5962 | -10/Subcaves | Found Prototype Leg 6560 | -10/Subcaves | Entered Recycling 6561 | -7/Recycling | Met a Zionite searching for Scraptown 8220 | -7/Recycling | Scanned before Scraplab entrance 8255 | -7/Recycling | Discovered new exit (range 11) 8264 | -7/Recycling | Entered Scraplab 8293 | -7/Recycling | Entered Scraptown 8479 | -7/Scraptown | Visited UFD Registry 8479 | -7/Scraptown | Registered with UFD as "Chainkit" 8613 | -7/Scraptown | Heard Great Nut preacher, LISTEN AND RECITE! 8636 | -7/Scraptown | Scanned Subdweller tech in exchange for log data 8642 | -7/Scraptown | Learned Research stockpile data 8645 | -7/Scraptown | Learned location of Extension (-5) 8649 | -7/Scraptown | Learned 12 Factory zone layouts 8652 | -7/Scraptown | Learned Factory security intel 8658 | -7/Scraptown | Learned Factory emergency access door positions 8695 | -7/Scraptown | Discovered new exit (range 3) 9430 | -7/Scraptown | Visited IN-MT5's Study 9479 | -7/Scraptown | Visited Shadow of the Wyrm 9529 | -7/Scraptown | Visited The Evicted 9582 | -7/Scraptown | Visited Comm Corps 9655 | -7/Scraptown | Visited Awakened 9668 | -7/Scraptown | Visited Cave Peace 9727 | -7/Scraptown | Visited Artisan Demo Area 9939 | -7/Scraptown | Delivered Scrap Shield to a Scientist 10142 | -7/Scraptown | Visited Scrap Suit Storage 10268 | -7/Scraptown | Visited Scrapoid Pod Storage 10297 | -7/Scraptown | Visited LU-1G1's Boring Crew 10395 | -7/Scraptown | Visited Analyses Database 10459 | -7/Scraptown | Visited Chapter 10 10515 | -7/Scraptown | Visited Abandonware Association 10526 | -7/Scraptown | Learned abandonware demo "OVRCLOCK.EXE" 10537 | -7/Scraptown | Learned abandonware demo "SHUTEYE.EXE" 10537 | -7/Scraptown | Learned abandonware demo "TRNCOAT.EXE" 10580 | -7/Scraptown | Visited Scrapoid Research Area 10625 | -7/Scraptown | Visited DA-N13 Charitable Foundation 10641 | -7/Scraptown | Found DCF Scrap (29 items) 10699 | -7/Scraptown | Discovered new exit (range 5) 10857 | -7/Scraptown | Visited Observation Area 10981 | -7/Scraptown | Identified Cargo Legs 10982 | -7/Scraptown | Attached Cargo Legs, gained temporary slots: Utility x2 11244 | -7/Scraptown | Found Scrap Suit 11247 | -7/Scraptown | Found Scrap Suit 11798 | -7/Scraptown | Entered Factory 11798 | -5/Factory | Evolved 10 slots: Propulsion x2, Utility x7, Weapon x1 11799 | -5/Factory | Identified exit to Factory 12088 | -5/Factory | Build established: Derelict-Gladiator 12348 | -5/Factory | Discovered new exit (range 5) 12384 | -5/Factory | Identified exit to Upper Caves 12384 | -5/Factory | Identified exit to Extension 12444 | -5/Factory | Entered Upper Caves 12446 | -5/Upper Caves | UFD Scientist delivered a prototype 12451 | -5/Upper Caves | Found Prototype Protection 12451 | -5/Upper Caves | Identified Enh. Scrap Shield 12468 | -5/Upper Caves | Identified exit to Upper Caves 12951 | -5/Upper Caves | Entered another Upper Caves area 13044 | -5/Upper Caves | Identified exit to Warlord 13111 | -5/Upper Caves | Learned location of Warlord (-5) 13175 | -5/Upper Caves | Spotted B-75 Beast 13547 | -5/Upper Caves | Attracted the attention of an 0b10 outpost 13574 | -5/Upper Caves | Entered Warlord 13602 | -5/Warlord | Build established: Derelict-Mutant 13632 | -5/Warlord | System corruption cleaned by Quarantine Array 13818 | -5/Warlord | Rebuked by Warlord 13843 | -5/Warlord | Warlord's base attacked by MAIN.C 13869 | -5/Warlord | Found Prototype Device 13869 | -5/Warlord | Identified Minesniffer Drone Bay 13877 | -5/Warlord | Found Minesniffer Drone Bay 13879 | -5/Warlord | Found Minesniffer Drone Bay 13881 | -5/Warlord | Found Minesniffer Drone Bay 13938 | -5/Warlord | Found Prototype Special Weapon 13938 | -5/Warlord | Identified RU-N14's Throwing Claymores v3 14060 | -5/Warlord | Found Prototype Energy Cannon 14063 | -5/Warlord | Found Prototype Energy Cannon 14065 | -5/Warlord | Found Prototype Energy Cannon 14067 | -5/Warlord | Found Prototype Energy Cannon 14071 | -5/Warlord | Found Prototype Energy Gun 14073 | -5/Warlord | Found Prototype Energy Gun 14193 | -5/Warlord | Warlord forces counterattacked 14249 | -5/Warlord | Found Signal Generator 14388 | -5/Warlord | Spotted Striker 14518 | -5/Warlord | Warlord base infiltrated, sounded retreat 14613 | -5/Warlord | Discovered new exit (range 14) 14630 | -5/Warlord | Entered Proximity Caves 14630 | -4/Proximity Caves | Accompanied by 4 allies 14921 | -4/Proximity Caves | Attracted the attention of an 0b10 checkpoint 15164 | -4/Proximity Caves | Entered Factory 15164 | -4/Factory | Accompanied by 4 allies 15164 | -4/Factory | Evolved 2 slots: Utility x2 15512 | -4/Factory | Discovered new exit (range 11) 15660 | -4/Factory | Identified exit to Upper Caves 15694 | -4/Factory | P-70 Sage assimilated allied Archangel 6a 15711 | -4/Factory | P-70 Sage assimilated allied Archangel 7a 15751 | -4/Factory | Identified Vortex Driver (x2) 15752 | -4/Factory | Identified Vortex Rail (x2) 15840 | -4/Factory | Entered Upper Caves 15947 | -4/Upper Caves | Attracted the attention of an 0b10 checkpoint 15981 | -4/Upper Caves | Learned Research stockpile data 16001 | -4/Upper Caves | Learned location of Quarantine (-2) 16012 | -4/Upper Caves | Encountered a Warlord checkpoint 16039 | -4/Upper Caves | Build established: Infiltrator-Mutant 16062 | -4/Upper Caves | Attacked by a delusional Derelict stockpiling parts 16161 | -4/Upper Caves | Discovered new exit (range 12) 16185 | -4/Upper Caves | Entered another Upper Caves area 16256 | -4/Upper Caves | Found DCF Scrap (14 items) 16530 | -4/Upper Caves | Discovered new exit (range 11) 16544 | -4/Upper Caves | Entered Zhirov 16545 | -4/Zhirov | Discovered new exit (range 3) 16565 | -4/Zhirov | Build established: Derelict-Mutant 16567 | -4/Zhirov | Met Zhirov 16593 | -4/Zhirov | Learned location of Testing (-3) 16593 | -4/Zhirov | Learned location of Command (-1) 16600 | -4/Zhirov | Zhirov requested help retrieving the SGEMP Prototype 16724 | -4/Zhirov | Entered Proximity Caves 17015 | -3/Proximity Caves | Attracted the attention of an 0b10 checkpoint 17064 | -3/Proximity Caves | Discovered new exit (range 12) 17145 | -3/Proximity Caves | Entered Research 17145 | -3/Research | Evolved 2 slots: Utility x2 17146 | -3/Research | Identified exit to Testing 17148 | -3/Research | Loaded intel: 101 machine locations 17162 | -3/Research | Found Gamma Bomb Array 17227 | -3/Research | Lost 3 parts (1n1u1w) 17283 | -3/Research | Entered Testing 17296 | -3/Testing | Found Prototype Device 17296 | -3/Testing | Identified Exp. Thermal Shield 17299 | -3/Testing | Found Exp. Thermal Shield 17301 | -3/Testing | Found Faulty Exp. Thermal Shield 17347 | -3/Testing | Spotted PG-F36LY8GKLI 17356 | -3/Testing | Rewired PG-F36LY8GKLI 17517 | -3/Testing | Spotted Striker 17517 | -3/Testing | Spotted Striker 17520 | -3/Testing | Allies destroyed Striker 17520 | -3/Testing | Destroyed Striker 17556 | -3/Testing | Spotted Alpha 7 17569 | -3/Testing | Allies destroyed Alpha 7 17587 | -3/Testing | Stole the SGEMP Prototype 17694 | -3/Testing | Found Prototype Processor 17694 | -3/Testing | Identified Exp. Targeting Computer 17708 | -3/Testing | Found Prototype Energy Cannon 17708 | -3/Testing | Identified Cld. Nova Cannon 17873 | -3/Testing | Build established: Derelict-Tank 18109 | -3/Testing | Found Prototype Launcher 18168 | -3/Testing | Unstable Terrabomb Derivative detonated 18168 | -3/Testing | Identified Z-bomb Delivery System 18227 | -3/Testing | Destroyed 7 combat bots 18250 | -3/Testing | Found Prototype Device 18250 | -3/Testing | Identified Exp. Thermal Defense Suite 18675 | -3/Testing | Build established: Scavenger-Tank 18899 | -3/Testing | System corruption reached 10% 18950 | -3/Testing | Discovered new exit (range 20) 19061 | -3/Testing | First assault squad dispatched 19108 | -3/Testing | Entered Research 19108 | -2/Research | Evolved 2 slots: Power x1, Propulsion x1 19267 | -2/Research | Repaired Broken Enh. Biometal Leg 19787 | -2/Research | Scrapoid reinforcements arrived 19858 | -2/Research | First assault squad dispatched 19877 | -2/Research | Discovered new exit (range 18) 19936 | -2/Research | Lost 6 allies 19941 | -2/Research | Entered Access 19941 | -1/Access | Evolved 2 slots: Utility x2 19942 | -1/Access | Delivered the SGEMP Prototype to Zhirov 19942 | -1/Access | Zhirov transferred Access data 19943 | -1/Access | Loaded intel: 122 machine locations 19943 | -1/Access | Loaded intel: 61 trap records 19943 | -1/Access | Identified exit to Surface 19943 | -1/Access | Discovered exit to Surface (range 200) 19943 | -1/Access | Identified exit to Command 19943 | -1/Access | Discovered exit to Command (range 148) 20146 | -1/Access | Zhirov warped through subspace 20216 | -1/Access | First assault squad dispatched 20318 | -1/Access | Spotted B-99 Colossus 20550 | -1/Access | System corruption reached 10% 20628 | -1/Access | Entered Command 21214 | -1/Command | Lost 12 parts (1p2n6u3w) 21349 | -1/Command | Spotted M Guard 21356 | -1/Command | Spotted M Guard 21356 | -1/Command | Spotted Combat Programmer 21357 | -1/Command | Spotted Combat Programmer 21393 | -1/Command | System corruption reached 30% 21405 | -1/Command | Core integrity fell below 50% 21409 | -1/Command | Core integrity fell below 20% 21415 | -1/Command | Destroyed by Combat Programmer with EMDS Last Messages --------------- 21401_ Destroyed Antimissile System. 21402_ The unstable cave ceiling collapses. 21403_ Z-bomb Delivery System destroyed. 21403_ Destroyed Z-bomb Delivery System. 21404_ Penetrated by EMDS Slug. 21406_ The unstable cave ceiling collapses. 21406_ Penetrated by EMDS Slug. 21407_ The unstable cave ceiling collapses. 21407_ Penetrated by EMDS Slug. 21408_ The unstable cave ceiling collapses. 21408_ Terminal disabled. 21408_ K-01 Serf destroyed. 21409_ EMDS Slug penetrates Wall. 21410_ The unstable cave ceiling collapses. 21413_ Quantum Router disabled. 21413_ Penetrated by EMDS Slug. 21413_ Terminal disabled. 21414_ The unstable cave ceiling collapses. 21414_ O-32 Director: "IFF HANDSHAKE FAILED. SECURING TERMINAL." 21415_ Penetrated by EMDS Slug. Map ----- +----------------------------------------------------+ | ?????????????????????????????????????????????????? | | ?????????????????????????????????????????????????? | | ?????????????????????????????????????????????????? | | ?????????????????????????????????????????????????? | | ?????????????????????????????????????????????????? | | ?????????????????????????????????????????????????? | | ?????????????????????????????????????????????????? | | ?????????????????????????????????????????????????? | | ?????????????????????????????????????????????????? | | ?????????????????????????????????????????????????? | | ?????????????????#####/########??????????????????? | | ?????????????????# #??????????????????? | | ?????????????????# #??????????????????? | | ?????????????????# #??????????????????? | | ?????????????????# "" #??????????????????? | | ?????????????????+ """" #??????????????????? | | ?????????????????# """" #??????????????????? | | ?????????????????# "" #??????????????????? | | ?????????????????# #??????????????????? | | ?????????????????# #??????????? ????? | | ?????????????????? #?????????? #???? | | ???????????????????? ! ???????????# #??? | | ?????????????????????? ?????????????# #? | | ?????????????###########+################ #? ? | | #????????????# # """"""""" + %? | | #?########### @""""T"""" # ?? | | # ## ## ## # " ?? | | ## # " #??? | | # # # +?? | | # # = #? | | ## # %#? | | # ### # # " p "" #? | | # """" """" # | | +## """" p"""" # | | pp "" "" # | | Y % "#??? | | % "#??? | | #???? | | k ####? | | ### ##;;;;"" ##+########### ##? | | ??# ######## # #???## # ## | | ###??#"###??????# # #????# % | | ?????# #????????# # "" #????# #### | | ?????# #????????# # "" #????# # #? | | ?????# #????????# # Y" #????# #??## | | ?????# ?????????# # "" #???#### # ######% | | ?????##?????????# # "" #???# % + | | ????????????????# # #???# = ## | | ????????????????# + #???# " #? | | ??????????#######+#+############???# *[ R"" #? | +----------------------------------------------------+ Best States ------------- Heat Dissipation 128 Energy Generation 49 Energy Capacity 640 Matter Stores 300 Matter Capacity 300 Sight Range 23 Terrain Scan Density 10 Jamming Range 16 Cloak Strength 4 Power Amplification 20 Armor Coverage 1725 Resistance: KI 25 Resistance: TH 30 Point Defense Rating 240 Melee Speed Boost 20 Evasion (%) 69 Targeting Accuracy 12 Target Analysis 12 Core Analysis 6 Recoil Reduction 2 Matter Filtering 45 Item Schematics ----------------- Adv. Transmission Jammer | -5/Factory | Hacked Assault Drone Bay | -4/Zhirov | Free Exp. Heat Sink | -4/Zhirov | Free Exp. Optical Array | -4/Zhirov | Free Imp. Arc Thrower | -4/Zhirov | Free Hvy. Neutron Cannon | -3/Testing | Archive Enh. Armored Medium Treads | -3/Testing | Archive Hvy. Wave Gun | -3/Testing | Archive Particle Accelerator | -3/Testing | Archive Adv. Thermal Defense Suite | -3/Testing | Archive Hvy. Dispersion Rifle | -3/Testing | Archive Cld. Nuclear Pulse Thruster | -3/Testing | Archive Exp. Thermal Shield | -3/Testing | Archive Exp. Energy Well | -3/Testing | Archive Lgt. Antimatter Cannon | -3/Testing | Archive Exp. Targeting Computer | -3/Testing | Archive Imp. Energy Well | -3/Testing | Archive Robot Schematics ------------------ A-15 Conveyor | -3/Testing | Archive Fabricated ------------ Nothing Alien Tech Used ----------------- None Achievements -------------- None Challenges ------------ None Game ------ Seed ReactiveTowerCyclogen Manual? 0 Play Time 02:40:30 Cumulative 178.8 hours Start 2024.09.12 @ 18:22:16 End 2024.09.12 @ 21:11:28 Sessions 1 Manual Loads 0 Difficulty Rogue Special Mode None Game No. 137 Rogue 137 Adventurer 0 Explorer 0 Win Type - Total 12 Types 8/0/3/1/0/0/0/0/0 Lore% 73 Gallery% 70 Achievement% 64 Wizard Run 0 Options --------- Layout 0 ASCII 0 Keyboard 1 Movement Vi Keybinds 0 Fullscreen 2 Font 24/Swanston Map View 76x50 Zoom Use 0% Tactical HUD 1 Map Filters NONE Filters NONE Steam 1 RUN: d52abb4b-e447-42c6-bbe9-5f755a025cac